fUST/lending_fUST_20250814
["ID","MTS","AMOUNT","RATE_DAILY","PERIOD"]
[379077862,1755118244865,-460.0,0.00019726,2]
[379077863,1755118244878,-460.0,0.00019726,2]
[379077864,1755118244888,-525.74,0.00019726,2]
[379077865,1755118244897,-460.0,0.00019726,2]
[379077866,1755118244907,-460.0,0.00019726,2]
[379077867,1755118244916,-460.0,0.00019726,2]
[379077868,1755118244926,-503.05,0.00019726,2]
[379077869,1755118244935,-460.0,0.00019726,2]
[379077870,1755118244944,-460.0,0.00019726,2]
[379077871,1755118244953,-460.0,0.00019726,2]
[379077872,1755118244963,-494.69,0.00019726,2]
[379077873,1755118244972,-460.0,0.00019726,2]
[379077874,1755118244981,-460.0,0.00019726,2]
[379077875,1755118244991,-460.0,0.00019726,2]
[379077876,1755118245001,-482.25,0.00019726,2]
[379077877,1755118245010,-460.0,0.00019726,2]
[379077878,1755118245020,-460.0,0.00019726,2]
[379077879,1755118245030,-460.0,0.00019726,2]
[379077880,1755118245040,-473.12233434,0.00019726,2]
[379077881,1755118245050,-460.0,0.00019726,2]
[379077882,1755118245059,-460.0,0.00019726,2]
[379077883,1755118245069,-460.0,0.00019726,2]
[379077884,1755118245080,-460.0,0.00019726,2]
[379077885,1755118245090,-460.0,0.00019726,2]
[379077886,1755118245099,-460.0,0.00019726,2]
[379077887,1755118245109,-1331.54,0.00019726,2]
[379077888,1755118245120,-460.0,0.00019726,2]
[379077889,1755118245131,-771.5,0.00019726,2]
[379077890,1755118245140,-240.11294103,0.00019726,2]
[379077891,1755118245149,-500.0,0.00019726,2]
[379077892,1755118245158,-460.0,0.00019726,2]
[379077893,1755118245168,-911.82,0.00019726,2]
[379077894,1755118245178,-586.89,0.00019726,2]
[379077895,1755118245187,-460.0,0.00019726,2]
[379077896,1755118245197,-460.0,0.00019726,2]
[379077897,1755118245207,-460.0,0.00019726,2]
[379077898,1755118245217,-749.06,0.00019726,2]
[379077899,1755118245227,-460.0,0.00019726,2]
[379077900,1755118245236,-621.08,0.00019726,2]
[379077901,1755118245246,-460.0,0.00019726,2]
[379077902,1755118245257,-460.0,0.00019726,2]
[379077903,1755118245268,-460.0,0.00019726,2]
[379077904,1755118245277,-460.0,0.00019726,2]
[379077905,1755118245287,-460.0,0.00019726,2]
[379077906,1755118245296,-460.0,0.00019726,2]
[379077907,1755118245307,-1245.23,0.00019726,2]
[379077908,1755118245318,-585.34,0.00019726,2]
[379077909,1755118245327,-177.42896435,0.00019726,2]
[379077910,1755118245337,-572.55,0.00019726,2]
[379077911,1755118245346,-460.0,0.00019726,2]
[379077912,1755118245356,-460.0,0.00019726,2]
[379077913,1755118245367,-460.0,0.00019726,2]
[379077914,1755118245377,-460.0,0.00019726,2]
[379077915,1755118245387,-460.0,0.00019726,2]
[379077916,1755118245397,-970.64,0.00019726,2]
[379077917,1755118245407,-460.0,0.00019726,2]
[379077918,1755118245416,-460.0,0.00019726,2]
[379077919,1755118245478,-1303.57,0.00019726,2]
[379077920,1755118245488,-460.0,0.00019726,2]
[379077922,1755118245497,-460.0,0.00019726,2]
[379077924,1755118245506,-742.23,0.00019726,2]
[379077925,1755118245516,-511.36,0.00019726,2]
[379077926,1755118245525,-460.0,0.00019726,2]
[379077927,1755118245534,-3489.27,0.00019726,2]
[379077928,1755118245544,-460.0,0.00019726,2]
[379077930,1755118245553,-497.61,0.00019726,2]
[379077931,1755118245562,-460.0,0.00019726,2]
[379077932,1755118245571,-1059.56,0.00019726,2]
[379077933,1755118245580,-778.58,0.00019726,2]
[379077934,1755118245589,-460.0,0.00019726,2]
[379077935,1755118245598,-460.0,0.00019726,2]
[379077936,1755118245607,-460.0,0.00019726,2]
[379077937,1755118245616,-476.92805943,0.00019726,2]
[379077938,1755118245626,-460.0,0.00019726,2]
[379077939,1755118245635,-460.0,0.00019726,2]
[379077940,1755118245645,-460.0,0.00019726,2]
[379077941,1755118245654,-460.0,0.00019726,2]
[379077942,1755118245663,-460.0,0.00019726,2]
[379077943,1755118245674,-460.0,0.00019726,2]
[379077944,1755118245683,-620.87,0.00019726,2]
[379077945,1755118245692,-526.61,0.00019726,2]
[379077946,1755118245702,-460.0,0.00019726,2]
[379077947,1755118245711,-460.0,0.00019726,2]
[379077949,1755118245720,-460.0,0.00019726,2]
[379077951,1755118245730,-460.0,0.00019726,2]
[379077953,1755118245739,-460.0,0.00019726,2]
[379077955,1755118245748,-460.0,0.00019726,2]
[379077957,1755118245758,-777.36,0.00019726,2]
[379077959,1755118245768,-460.0,0.00019726,2]
[379077961,1755118245777,-460.0,0.00019726,2]
[379077963,1755118245787,-460.0,0.00019726,2]
[379077966,1755118245797,-195.22193377,0.00019726,2]
[379077967,1755118245807,-460.0,0.00019726,2]
[379077969,1755118245817,-460.0,0.00019726,2]
[379077971,1755118245830,-407.91293757,0.00019726,2]
[379077973,1755118245839,-460.0,0.00019726,2]
[379077975,1755118245849,-343.74395754,0.00019726,2]
[379077977,1755118245858,-460.0,0.00019726,2]
[379077979,1755118245869,-922.58,0.00019726,2]
[379077982,1755118245882,-460.0,0.00019726,2]
[379077983,1755118245892,-460.0,0.00019726,2]
[379077985,1755118245904,-460.0,0.00019726,2]
[379077987,1755118245914,-660.59,0.00019726,2]
[379077989,1755118245923,-460.0,0.00019726,2]
[379077992,1755118245932,-460.0,0.00019726,2]
[379077993,1755118245941,-460.0,0.00019726,2]
[379077995,1755118245951,-460.0,0.00019726,2]
[379077997,1755118245960,-962.37,0.00019726,2]
[379077999,1755118245969,-460.0,0.00019726,2]
[379078001,1755118245978,-460.0,0.00019726,2]
[379078003,1755118245988,-2270.82,0.00019726,2]
[379078005,1755118245997,-1025.77,0.00019726,2]
[379078007,1755118246006,-1871.25,0.00019726,2]
[379078009,1755118246016,-296.88212933,0.00019726,2]
[379078011,1755118246025,-460.0,0.00019726,2]
[379078013,1755118246035,-905.56,0.00019726,2]
[379078015,1755118246044,-460.0,0.00019726,2]
[379078017,1755118246054,-733.24,0.00019726,2]
[379078019,1755118246063,-460.0,0.00019726,2]
[379078022,1755118246080,-460.0,0.00019726,2]
[379078025,1755118246092,-460.0,0.00019726,2]
[379078027,1755118246101,-460.0,0.00019726,2]
[379078029,1755118246111,-6434.65,0.00019726,2]
[379078031,1755118246120,-718.02,0.00019726,2]
[379078033,1755118246133,-460.0,0.00019726,2]
[379078035,1755118246143,-479.19,0.00019726,2]
[379078037,1755118246152,-460.0,0.00019726,2]
[379078039,1755118246161,-1986.33,0.00019726,2]
[379078041,1755118246171,-490.6,0.00019726,2]
[379078043,1755118246181,-698.26,0.00019726,2]
[379078045,1755118246191,-460.0,0.00019726,2]
[379078047,1755118246200,-460.0,0.00019726,2]
[379078049,1755118246210,-460.0,0.00019726,2]
[379078051,1755118246219,-460.0,0.00019726,2]
[379078053,1755118246229,-1032.47,0.00019726,2]
[379078055,1755118246238,-673.72,0.00019726,2]
[379078057,1755118246247,-1611.42,0.00019726,2]
[379078059,1755118246257,-526.6678656,0.00019726,2]
[379078061,1755118246266,-460.0,0.00019726,2]
[379078063,1755118246275,-1120.1,0.00019726,2]
[379078064,1755118246284,-460.0,0.00019726,2]
[379078065,1755118246293,-460.0,0.00019726,2]
[379078066,1755118246303,-460.0,0.00019726,2]
[379078067,1755118246312,-503.17,0.00019726,2]
[379078068,1755118246322,-663.68,0.00019726,2]
[379078069,1755118246331,-460.0,0.00019726,2]
[379078070,1755118246340,-460.0,0.00019726,2]
[379078071,1755118246349,-460.0,0.00019726,2]
[379078072,1755118246359,-510.55499618,0.00019726,2]
[379078073,1755118246368,-460.0,0.00019726,2]
[379078074,1755118246379,-460.0,0.00019726,2]
[379078075,1755118246387,-524.77066938,0.00019726,2]
[379078076,1755118246397,-360.16603561,0.00019726,2]
[379078077,1755118246406,-1110.64,0.00019726,2]
[379078078,1755118246416,-905.98,0.00019726,2]
[379078079,1755118246425,-460.0,0.00019726,2]
[379078080,1755118246435,-460.0,0.00019726,2]
[379078081,1755118246444,-460.0,0.00019726,2]
[379078082,1755118246454,-460.0,0.00019726,2]
[379078083,1755118246464,-597.99,0.00019726,2]
[379078084,1755118246473,-460.0,0.00019726,2]
[379078085,1755118246483,-460.0,0.00019726,2]
[379078086,1755118246492,-460.0,0.00019726,2]
[379078087,1755118246502,-460.0,0.00019726,2]
[379078088,1755118246511,-912.0,0.00019726,2]
[379078089,1755118246521,-460.0,0.00019726,2]
[379078090,1755118246530,-1104.69,0.00019726,2]
[379078091,1755118246542,-460.0,0.00019726,2]
[379078092,1755118246551,-460.0,0.00019726,2]
[379078093,1755118246561,-205.48317821,0.00019726,2]
[379078094,1755118246571,-460.0,0.00019726,2]
[379078095,1755118246580,-460.0,0.00019726,2]
[379078096,1755118246590,-526.75,0.00019726,2]
[379078097,1755118246600,-237.37,0.00019726,2]
[379078098,1755118246609,-460.0,0.00019726,2]
[379078099,1755118246619,-299.92555999,0.00019726,2]
[379078100,1755118246629,-970.4,0.00019726,2]
[379078101,1755118246638,-460.0,0.00019726,2]
[379078102,1755118246648,-460.0,0.00019726,2]
[379078103,1755118246657,-460.0,0.00019726,2]
[379078104,1755118246669,-460.0,0.00019726,2]
[379078105,1755118246678,-460.0,0.00019726,2]
[379078106,1755118246688,-460.0,0.00019726,2]
[379078107,1755118246697,-3629.24,0.00019726,2]
[379078108,1755118246707,-460.0,0.00019726,2]
[379078109,1755118246716,-1652.86,0.00019726,2]
[379078110,1755118246726,-460.0,0.00019726,2]
[379078111,1755118246736,-710.69,0.00019726,2]
[379078112,1755118246746,-460.0,0.00019726,2]
[379078113,1755118246756,-1368.62,0.00019726,2]
[379078114,1755118246765,-460.0,0.00019726,2]
[379078115,1755118246775,-4767.05,0.00019726,2]
[379078116,1755118246784,-460.0,0.00019726,2]
[379078117,1755118246794,-560.84,0.00019726,2]
[379078118,1755118246803,-460.0,0.00019726,2]
[379078119,1755118246813,-460.0,0.00019726,2]
[379078120,1755118246824,-460.0,0.00019726,2]
[379078121,1755118246834,-493.52,0.00019726,2]
[379078122,1755118246843,-460.0,0.00019726,2]
[379078123,1755118246853,-460.0,0.00019726,2]
[379078124,1755118246863,-2415.39,0.00019726,2]
[379078125,1755118246874,-896.7,0.00019726,2]
[379078126,1755118246884,-460.0,0.00019726,2]
[379078127,1755118246893,-460.0,0.00019726,2]
[379078128,1755118246904,-460.0,0.00019726,2]
[379078129,1755118246914,-460.0,0.00019726,2]
[379078130,1755118246923,-2312.16,0.00019726,2]
[379078131,1755118246933,-460.0,0.00019726,2]
[379078132,1755118246942,-990.24,0.00019726,2]
[379078133,1755118246951,-460.0,0.00019726,2]
[379078134,1755118246960,-460.0,0.00019726,2]
[379078135,1755118246970,-460.0,0.00019726,2]
[379078136,1755118246979,-460.0,0.00019726,2]
[379078137,1755118246989,-460.0,0.00019726,2]
[379078138,1755118247001,-782.76,0.00019726,2]
[379078139,1755118247010,-460.0,0.00019726,2]
[379078140,1755118247019,-460.0,0.00019726,2]
[379078141,1755118247028,-460.0,0.00019726,2]
[379078142,1755118247037,-460.0,0.00019726,2]
[379078143,1755118247047,-460.0,0.00019726,2]
[379078144,1755118247056,-704.4,0.00019726,2]
[379078145,1755118247065,-1093.83,0.00019726,2]
[379078146,1755118247074,-460.0,0.00019726,2]
[379078147,1755118247083,-460.0,0.00019726,2]
[379078148,1755118247092,-460.0,0.00019726,2]
[379078150,1755118247102,-1907.1,0.00019726,2]
[379078152,1755118247112,-1265.47,0.00019726,2]
[379078154,1755118247121,-460.0,0.00019726,2]
[379078156,1755118247130,-598.3,0.00019726,2]
[379078158,1755118247139,-460.0,0.00019726,2]
[379078160,1755118247149,-460.0,0.00019726,2]
[379078161,1755118247158,-460.0,0.00019726,2]
[379078162,1755118247167,-460.0,0.00019726,2]
[379078163,1755118247177,-460.0,0.00019726,2]
[379078164,1755118247186,-980.37,0.00019726,2]
[379078165,1755118247195,-460.0,0.00019726,2]
[379078166,1755118247206,-266.20487348,0.00019726,2]
[379078168,1755118247216,-460.0,0.00019726,2]
[379078170,1755118247225,-460.0,0.00019726,2]
[379078172,1755118247234,-715.05,0.00019726,2]
[379078174,1755118247244,-514.91,0.00019726,2]
[379078176,1755118247253,-239.32,0.00019726,2]
[379078178,1755118247262,-914.57,0.00019726,2]
[379078180,1755118247272,-14670.45219102,0.00019888,2]
[379078182,1755118247281,-5446.41184737,0.000199,2]
[379078184,1755118247291,-480.513505,0.0002,2]
[379078186,1755118247301,-480.513505,0.0002,2]
[379078188,1755118247311,-480.513505,0.0002,2]
[379078190,1755118247320,-480.513505,0.0002,2]
[379078192,1755118247329,-162.044526,0.0002,2]
[379078194,1755118247338,-234.445802,0.0002,2]
[379078196,1755118247347,-234.445802,0.0002,2]
[379078198,1755118247357,-234.445802,0.0002,2]
[379078200,1755118247366,-234.445801,0.0002,2]
[379078202,1755118247376,-151.0,0.0002,2]
[379078204,1755118247385,-170.833222,0.0002,2]
[379078206,1755118247394,-246.32274521,0.0002,7]
[379078208,1755118247405,-460.0,0.0002,2]
[379078210,1755118247414,-460.0,0.0002,2]
[379078212,1755118247424,-460.0,0.0002,2]
[379078214,1755118247433,-460.0,0.0002,2]
[379078216,1755118247443,-460.0,0.0002,2]
[379078218,1755118247452,-460.0,0.0002,2]
[379078220,1755118247461,-460.0,0.0002,2]
[379078222,1755118247470,-708.1,0.0002,2]
[379078224,1755118247479,-209.33911433,0.0002,2]
[379078226,1755118247488,-933.42,0.0002,2]
[379078228,1755118247498,-633.64,0.0002,2]
[379078230,1755118247508,-460.0,0.0002,2]
[379078232,1755118247517,-460.0,0.0002,2]
[379078234,1755118247527,-460.0,0.0002,2]
[379078236,1755118247536,-460.0,0.0002,2]
[379078238,1755118247545,-460.0,0.0002,2]
[379078240,1755118247555,-460.0,0.0002,2]
[379078242,1755118247564,-460.0,0.0002,2]
[379078244,1755118247573,-460.0,0.0002,2]
[379078246,1755118247583,-460.0,0.0002,2]
[379078248,1755118247592,-460.0,0.0002,2]
[379078250,1755118247601,-460.0,0.0002,2]
[379078252,1755118247610,-173.68,0.0002,2]
[379078254,1755118247620,-460.0,0.0002,2]
[379078256,1755118247630,-521.0332982,0.0002,2]
[379078258,1755118247639,-460.0,0.0002,2]
[379078260,1755118247649,-460.0,0.0002,2]
[379078262,1755118247658,-460.0,0.0002,2]
[379078264,1755118247668,-460.0,0.0002,2]
[379078266,1755118247679,-460.0,0.0002,2]
[379078268,1755118247688,-672.61,0.0002,2]
[379078270,1755118247698,-460.0,0.0002,2]
[379078272,1755118247708,-460.0,0.0002,2]
[379078274,1755118247718,-460.0,0.0002,2]
[379078276,1755118247728,-460.0,0.0002,2]
[379078278,1755118247737,-460.0,0.0002,2]
[379078280,1755118247747,-460.0,0.0002,2]
[379078282,1755118247757,-460.0,0.0002,2]
[379078284,1755118247767,-460.0,0.0002,2]
[379078285,1755118247777,-460.0,0.0002,2]
[379078287,1755118247786,-460.0,0.0002,2]
[379078289,1755118247796,-460.0,0.0002,2]
[379078290,1755118247806,-460.0,0.0002,2]
[379078291,1755118247816,-460.0,0.0002,2]
[379078292,1755118247830,-525.74,0.0002,2]
[379078293,1755118247839,-460.0,0.0002,2]
[379078294,1755118247849,-432.05289506,0.0002,2]
[379078295,1755118247859,-183.87053877,0.0002,2]
[379078296,1755118247868,-503.05,0.0002,2]
[379078297,1755118247878,-460.0,0.0002,2]
[379078298,1755118247887,-460.0,0.0002,2]
[379078299,1755118247899,-460.0,0.0002,2]
[379078300,1755118247909,-494.69,0.0002,2]
[379078301,1755118247919,-460.0,0.0002,2]
[379078302,1755118247929,-460.0,0.0002,2]
[379078303,1755118247939,-460.0,0.0002,2]
[379078304,1755118247948,-460.0,0.0002,2]
[379078305,1755118247957,-460.0,0.0002,2]
[379078306,1755118247967,-460.0,0.0002,2]
[379078307,1755118247976,-460.0,0.0002,2]
[379078308,1755118247985,-460.0,0.0002,2]
[379078309,1755118247995,-460.0,0.0002,2]
[379078310,1755118248005,-460.0,0.0002,2]
[379078311,1755118248015,-460.0,0.0002,2]
[379078312,1755118248025,-1331.54,0.0002,2]
[379078313,1755118248035,-460.0,0.0002,2]
[379078314,1755118248044,-771.5,0.0002,2]
[379078315,1755118248054,-500.0,0.0002,2]
[379078316,1755118248064,-460.0,0.0002,2]
[379078317,1755118248077,-911.82,0.0002,2]
[379078318,1755118248087,-586.89,0.0002,2]
[379078319,1755118248097,-460.0,0.0002,2]
[379078320,1755118248107,-460.0,0.0002,2]
[379078321,1755118248117,-460.0,0.0002,2]
[379078322,1755118248127,-749.06,0.0002,2]
[379078323,1755118248137,-460.0,0.0002,2]
[379078324,1755118248147,-621.08,0.0002,2]
[379078325,1755118248157,-460.0,0.0002,2]
[379078326,1755118248167,-460.0,0.0002,2]
[379078327,1755118248177,-460.0,0.0002,2]
[379078328,1755118248187,-460.0,0.0002,2]
[379078330,1755118248198,-460.0,0.0002,2]
[379078332,1755118248208,-1245.23,0.0002,2]
[379078334,1755118248218,-585.34,0.0002,2]
[379078336,1755118248228,-572.55,0.0002,2]
[379078338,1755118248238,-460.0,0.0002,2]
[379078339,1755118248247,-460.0,0.0002,2]
[379078340,1755118248257,-460.0,0.0002,2]
[379078341,1755118248267,-460.0,0.0002,2]
[379078342,1755118248277,-460.0,0.0002,2]
[379078343,1755118248287,-970.64,0.0002,2]
[379078344,1755118248296,-460.0,0.0002,2]
[379078345,1755118248307,-460.0,0.0002,2]
[379078346,1755118248317,-1303.57,0.0002,2]
[379078347,1755118248327,-460.0,0.0002,2]
[379078348,1755118248337,-742.23,0.0002,2]
[379078349,1755118248347,-511.36,0.0002,2]
[379078350,1755118248357,-460.0,0.0002,2]
[379078351,1755118248367,-3489.27,0.0002,2]
[379078352,1755118248377,-497.61,0.0002,2]
[379078353,1755118248387,-460.0,0.0002,2]
[379078354,1755118248397,-460.0,0.0002,2]
[379078355,1755118248407,-1059.56,0.0002,2]
[379078356,1755118248417,-778.58,0.0002,2]
[379078357,1755118248428,-460.0,0.0002,2]
[379078358,1755118248437,-460.0,0.0002,2]
[379078359,1755118248447,-460.0,0.0002,2]
[379078360,1755118248458,-460.0,0.0002,2]
[379078361,1755118248468,-460.0,0.0002,2]
[379078362,1755118248478,-460.0,0.0002,2]
[379078363,1755118248488,-460.0,0.0002,2]
[379078364,1755118248498,-460.0,0.0002,2]
[379078365,1755118248508,-460.0,0.0002,2]
[379078366,1755118248518,-620.87,0.0002,2]
[379078367,1755118248528,-526.61,0.0002,2]
[379078368,1755118248538,-460.0,0.0002,2]
[379078369,1755118248548,-460.0,0.0002,2]
[379078370,1755118248558,-243.739,0.0002,2]
[379078371,1755118248568,-460.0,0.0002,2]
[379078372,1755118248578,-460.0,0.0002,2]
[379078373,1755118248589,-460.0,0.0002,2]
[379078374,1755118248598,-460.0,0.0002,2]
[379078375,1755118248608,-777.36,0.0002,2]
[379078376,1755118248619,-464.36172595,0.0002,2]
[379078377,1755118248629,-460.0,0.0002,2]
[379078378,1755118248640,-460.0,0.0002,2]
[379078379,1755118248650,-460.0,0.0002,2]
[379078380,1755118248660,-460.0,0.0002,2]
[379078381,1755118248670,-460.0,0.0002,2]
[379078382,1755118248680,-460.0,0.0002,2]
[379078383,1755118248690,-922.58,0.0002,2]
[379078384,1755118248700,-460.0,0.0002,2]
[379078385,1755118248710,-460.0,0.0002,2]
[379078386,1755118248720,-460.0,0.0002,2]
[379078387,1755118248730,-660.59,0.0002,2]
[379078388,1755118248740,-460.0,0.0002,2]
[379078389,1755118248750,-460.0,0.0002,2]
[379078390,1755118248760,-460.0,0.0002,2]
[379078391,1755118248770,-460.0,0.0002,2]
[379078392,1755118248780,-962.37,0.0002,2]
[379078393,1755118248791,-460.0,0.0002,2]
[379078394,1755118248801,-460.0,0.0002,2]
[379078395,1755118248811,-2270.82,0.0002,2]
[379078396,1755118248823,-1025.77,0.0002,2]
[379078397,1755118248834,-1871.25,0.0002,2]
[379078398,1755118248844,-460.0,0.0002,2]
[379078399,1755118248854,-905.56,0.0002,2]
[379078400,1755118248865,-460.0,0.0002,2]
[379078401,1755118248875,-733.24,0.0002,2]
[379078402,1755118248887,-460.0,0.0002,2]
[379078403,1755118248898,-460.0,0.0002,2]
[379078404,1755118248910,-460.0,0.0002,2]
[379078405,1755118248919,-718.02,0.0002,2]
[379078406,1755118248930,-460.0,0.0002,2]
[379078407,1755118248940,-479.19,0.0002,2]
[379078408,1755118248950,-6434.65,0.0002,2]
[379078409,1755118248960,-460.0,0.0002,2]
[379078410,1755118248970,-1986.33,0.0002,2]
[379078411,1755118248980,-490.6,0.0002,2]
[379078412,1755118248991,-698.26,0.0002,2]
[379078413,1755118249001,-460.0,0.0002,2]
[379078414,1755118249011,-460.0,0.0002,2]
[379078415,1755118249022,-460.0,0.0002,2]
[379078416,1755118249031,-1032.47,0.0002,2]
[379078417,1755118249041,-673.72,0.0002,2]
[379078418,1755118249051,-1611.42,0.0002,2]
[379078419,1755118249061,-460.0,0.0002,2]
[379078420,1755118249071,-1120.1,0.0002,2]
[379078421,1755118249081,-460.0,0.0002,2]
[379078422,1755118249091,-460.0,0.0002,2]
[379078423,1755118249100,-460.0,0.0002,2]
[379078424,1755118249110,-503.17,0.0002,2]
[379078425,1755118249120,-663.68,0.0002,2]
[379078426,1755118249131,-460.0,0.0002,2]
[379078427,1755118249141,-460.0,0.0002,2]
[379078428,1755118249150,-460.0,0.0002,2]
[379078429,1755118249160,-160.0,0.0002,3]
[379078430,1755118249169,-460.0,0.0002,2]
[379078431,1755118249179,-160.0,0.0002,3]
[379078432,1755118249189,-460.0,0.0002,2]
[379078433,1755118249198,-1110.64,0.0002,2]
[379078434,1755118249208,-460.0,0.0002,2]
[379078435,1755118249219,-905.98,0.0002,2]
[379078436,1755118249229,-460.0,0.0002,2]
[379078437,1755118249239,-460.0,0.0002,2]
[379078438,1755118249250,-460.0,0.0002,2]
[379078439,1755118249259,-597.99,0.0002,2]
[379078440,1755118249269,-460.0,0.0002,2]
[379078441,1755118249279,-460.0,0.0002,2]
[379078442,1755118249289,-460.0,0.0002,2]
[379078443,1755118249299,-460.0,0.0002,2]
[379078444,1755118249309,-912.0,0.0002,2]
[379078445,1755118249319,-460.0,0.0002,2]
[379078446,1755118249328,-1104.69,0.0002,2]
[379078447,1755118249338,-460.0,0.0002,2]
[379078448,1755118249348,-460.0,0.0002,2]
[379078449,1755118249358,-494.79236057,0.0002,2]
[379078450,1755118249367,-460.0,0.0002,2]
[379078451,1755118249377,-526.75,0.0002,2]
[379078452,1755118249387,-460.0,0.0002,2]
[379078453,1755118249397,-970.4,0.0002,2]
[379078454,1755118249407,-460.0,0.0002,2]
[379078455,1755118249417,-460.0,0.0002,2]
[379078456,1755118249427,-460.0,0.0002,2]
[379078457,1755118249437,-460.0,0.0002,2]
[379078458,1755118249447,-460.0,0.0002,2]
[379078459,1755118249457,-460.0,0.0002,2]
[379078460,1755118249468,-3629.24,0.0002,2]
[379078461,1755118249478,-1652.86,0.0002,2]
[379078462,1755118249489,-460.0,0.0002,2]
[379078463,1755118249499,-710.69,0.0002,2]
[379078464,1755118249510,-460.0,0.0002,2]
[379078465,1755118249519,-1368.62,0.0002,2]
[379078466,1755118249529,-460.0,0.0002,2]
[379078467,1755118249539,-4767.05,0.0002,2]
[379078468,1755118249548,-460.0,0.0002,2]
[379078469,1755118249558,-560.84,0.0002,2]
[379078470,1755118249568,-460.0,0.0002,2]
[379078471,1755118249578,-460.0,0.0002,2]
[379078472,1755118249589,-460.0,0.0002,2]
[379078473,1755118249599,-493.52,0.0002,2]
[379078474,1755118249610,-460.0,0.0002,2]
[379078475,1755118249620,-460.0,0.0002,2]
[379078476,1755118249631,-2415.39,0.0002,2]
[379078477,1755118249642,-896.7,0.0002,2]
[379078478,1755118249652,-460.0,0.0002,2]
[379078479,1755118249662,-460.0,0.0002,2]
[379078480,1755118249672,-460.0,0.0002,2]
[379078481,1755118249682,-2312.16,0.0002,2]
[379078482,1755118249691,-990.24,0.0002,2]
[379078483,1755118249702,-460.0,0.0002,2]
[379078484,1755118249712,-460.0,0.0002,2]
[379078485,1755118249722,-460.0,0.0002,2]
[379078486,1755118249731,-460.0,0.0002,2]
[379078487,1755118249742,-460.0,0.0002,2]
[379078488,1755118249752,-782.76,0.0002,2]
[379078489,1755118249762,-460.0,0.0002,2]
[379078490,1755118249772,-460.0,0.0002,2]
[379078491,1755118249782,-460.0,0.0002,2]
[379078492,1755118249792,-460.0,0.0002,2]
[379078493,1755118249802,-460.0,0.0002,2]
[379078494,1755118249812,-704.4,0.0002,2]
[379078495,1755118249824,-1093.83,0.0002,2]